[Event "Doeberl Cup 2022"]
[Site "Canberra"]
[Date "2022.04.15"]
[Round "3.2"]
[White "Bjelobrk, Igor"]
[Black "Cheng, Bobby"]
[Result "0-1"]
[ECO "E15"]
[WhiteElo "2403"]
[BlackElo "2550"]
[Annotator "TA"]
[PlyCount "78"]
[EventDate "2022.04.14"]
[EventType "swiss"]
[EventCountry "AUS"]
[SourceTitle "playchess.com"]
[Source "ChessBase"]
[SourceQuality "1"]
[TimeControl "5400+30"]

{[%evp 19,78,11,-2,0,14,-3,33,32,21,23,33,-29,31,-11,31,-19,-37,-78,-77,-97,-82,-162,-156,-145,-151,-145,-150,-143,-134,-213,-212,-268,-261,-293,-226,-261,-281,-256,-195,-198,-185,-252,-249,-256,-235,-312,-326,-326,-310,-321,-344,-314,-290,-377,-396,-380,-380,-544,-458,-483,-449]} 1. Nf3 {[%emt 0:00:33]} d5 {[%emt 0:00:10]} 2. d4 {[%emt 0:00:08]} Nf6 {[%emt 0:00:12]} 3. c4 {[%emt 0:00:07]} e6 {[%emt 0:00:05]} 4. g3 {[%emt 0:00:18]} Bb4+ {[%emt 0:00:08]} 5. Bd2 {[%emt 0:00:17]} Be7 {[%emt 0:00:12]} 6. Bg2 {[%emt 0:00:14]} O-O {[%emt 0:00:06]} 7. O-O {[%emt 0:00:08]} Nbd7 {[%emt 0:00:09]} 8. Qc2 {[%emt 0:01:00]} c6 {[%emt 0:00:18]} 9. Rd1 {[%emt 0:00:34]} b6 {[%emt 0:01:13]} 10. b3 {[%emt 0:00:43]} Ba6 {[%emt 0:03:02]} 11. Bc1 {[%emt 0:01:05] E15: Queen's Indian: 4 g3 sidelines, 4 g3 Ba6 and 4 g3 Bb7 early deviations.} Rc8 {[%emt 0:03:32]} 12. Bb2 {[%emt 0:00:15]} Ne4 {[%emt 0:00:14] 12...Qc7 is a critical line.} 13. e3 {[%emt 0:10:39] White is slightly better.} f5 {[%emt 0:01:08]} 14. Nc3 {[%emt 0:07:28] [#]} Qe8 $5 $146 {[%emt 0:01:36][%mdl 8] New and interesting.} ({Predecessor:} 14... Bd6 15. a4 Qf6 16. a5 b5 17. c5 Bc7 18. Na2 Bb7 19. a6 Ba8 20. Nb4 e5 {0-1 (39) Barp,A (2388)-Hansen,E (2606) Chess.com INT 2022}) 15. Ne2 {[%emt 0:09:00]} (15. a4 $14) 15... g5 {[%emt 0:10:58]} (15... c5 $11) 16. Rdc1 {[%emt 0:18:18]} h5 {[%emt 0:23:20]} 17. Qd1 {[%emt 0:06:25]} ({White should try} 17. h4 $14) 17... h4 $11 {[%emt 0:03:38]} 18. Rc2 {[%emt 0:03:52]} hxg3 {[%emt 0:07:06] Black continues to play with concentration.} 19. hxg3 {[%emt 0:00:15]} Qh5 {[%emt 0:00:25]} 20. Rac1 {[%emt 0:02:56]} (20. Nc3 $17) 20... Rf6 $1 $19 {[%emt 0:11:58]} 21. Nd2 {[%emt 0:04:01] [#]} Nxd2 {[%emt 0:09:10] 0x0.00138d2c0565dp-1022s more active pieces. The white rooks are badly placed.} ({And not} 21... Rh6 22. Nf1 $17 (22. Kf1 $2 Ndf6 $19)) 22. Qxd2 {[%emt 0:00:29] [#]} Rh6 $1 {[%emt 0:02:05]} 23. f3 {[%emt 0:07:47]} ({Of course not} 23. Kf1 Nf6 24. a4 Ne4 $17) 23... g4 {[%emt 0:04:20]} 24. f4 {[%emt 0:03:01]} (24. Kf2 $17) 24... Nf6 {[%emt 0:01:19]} 25. Qe1 {[%emt 0:03:01]} Ne4 {[%emt 0:05:08]} 26. Kf1 {[%emt 0:01:35]} Kf7 {[%emt 0:02:05]} 27. Bxe4 {[%emt 0:03:26]} fxe4 {[%emt 0:00:04]} (27... dxe4 28. Ng1 $17) 28. Ng1 {[%emt 0:00:09]} Rch8 {[%emt 0:00:59][%cal Bc8h8,Bh8h5,Bh5a5][%mdl 32] White must now prevent ...Qh1.} ({Worse is} 28... Qh1 29. Rg2 $17) 29. Rg2 {[%emt 0:00:37]} Qf5 {[%emt 0:03:36]} 30. Rcc2 {[%emt 0:02:26]} (30. Qc3 {was called for.}) 30... Rh1 {[%emt 0:00:08]} 31. Qe2 {[%emt 0:01:39]} R8h5 {[%emt 0:01:23]} 32. Qd2 {[%emt 0:02:31]} dxc4 {[%emt 0:01:16]} 33. bxc4 {[%emt 0:00:10]} Qa5 {[%emt 0:00:25] Hoping for ...Bb4.} 34. Qxa5 {[%emt 0:00:30]} Rxa5 {[%emt 0:00:30]} 35. Rgf2 {[%emt 0:06:07]} Rhh5 {[%emt 0:02:18][%cal Bh1h5,Bh5a5,Ba5a4][%mdl 32]} 36. Kg2 {[%emt 0:00:32]} Rxa2 {[%emt 0:00:51]} 37. Bc1 {[%emt 0:03:37]} Ra4 {[%emt 0:00:51]} 38. Ra2 {[%emt 0:00:41]} (38. c5 {was the only chance.} Bc4 39. Bb2) 38... Rha5 {[%emt 0:00:51]} 39. Rxa4 {[%emt 0:00:30]} Rxa4 {[%emt 0:00:30] Weighted Error Value: White=0.33/Black=0.12 (very precise)} 0-1

[Event "Doeberl Cup 2022"]
[Site "Canberra"]
[Date "2022.04.15"]
[Round "3.3"]
[White "Fernandez, Daniel Howard"]
[Black "Winkelman, Albert"]
[Result "1-0"]
[ECO "E04"]
[WhiteElo "2487"]
[BlackElo "2257"]
[Annotator "TA"]
[PlyCount "47"]
[EventDate "2022.04.14"]
[EventType "swiss"]
[EventCountry "AUS"]
[SourceTitle "playchess.com"]
[Source "ChessBase"]
[SourceQuality "1"]
[TimeControl "5400+30"]

{[%evp 10,47,22,13,31,27,27,14,56,48,91,92,89,85,86,85,101,79,295,287,279,280,271,284,291,223,226,220,235,237,381,374,402,385,554,456,881,699,684,635]} 1. d4 {[%emt 0:00:03]} Nf6 {[%emt 0:00:17]} 2. c4 {[%emt 0:00:07]} e6 {[%emt 0:01:59]} 3. g3 {[%emt 0:00:22]} d5 {[%emt 0:00:19]} 4. Bg2 {[%emt 0:00:14]} dxc4 {[%emt 0:00:15]} 5. Nf3 {[%emt 0:00:35]} Bb4+ {[%emt 0:00:16]} 6. Bd2 {[%emt 0:04:06]} c5 {[%emt 0:00:18] E04: Open Catalan: 5 Nf3.} 7. Bxb4 $1 {[%emt 0:04:04] The main line 7.Bxb4 scores better than 7.0-0.} cxb4 {[%emt 0:00:12]} 8. a3 {[%emt 0:00:01]} bxa3 {[%emt 0:00:40] The position is equal.} 9. Nxa3 {[%emt 0:00:10][%cal Bb1a3,Ba3c4,Bc4e5][%mdl 32]} Nc6 {[%emt 0:02:24]} 10. Nxc4 {[%emt 0:03:30]} O-O {[%emt 0:08:30]} 11. O-O {[%emt 0:01:58] [#]} Qc7 $146 {[%emt 0:25:32]} ({Predecessor:} 11... Rb8 12. e3 b6 13. Nfe5 Nxe5 14. Nxe5 Bb7 15. Rxa7 Bxg2 16. Kxg2 Qd5+ 17. Qf3 Qb5 {1-0 (34) Megalios,K (2390)-Colas,J (2293) Chess.com INT 2019}) 12. Qb3 {[%emt 0:00:42]} b6 {[%emt 0:04:33]} 13. Qa3 {[%emt 0:07:59] Rfc1 is the strong threat. &Bianco is more active.} Rd8 $2 {[%emt 0:01:22]} (13... Bb7 $16 {was necessary.}) 14. Rfc1 $18 {[%emt 0:00:04] [#] Hoping for Nce5.} Bb7 {[%emt 0:00:41]} 15. Nce5 {[%emt 0:01:06]} Qd6 {[%emt 0:23:54]} 16. Qxd6 {[%emt 0:02:57]} Rxd6 {[%emt 0:00:09]} 17. Ng5 {[%emt 0:00:08]} Nd8 {[%emt 0:02:42] [#]} 18. Ngxf7 $1 {[%emt 0:20:09][%mdl 512]} Nxf7 {[%emt 0:13:56]} 19. Bxb7 {[%emt 0:01:30][%cal Bg2b7,Bb7a6,Ba6d3][%mdl 32]} Rb8 {[%emt 0:01:05]} (19... Rf8 $142 20. e3 (20. Rxa7 Rxd4 21. Nxf7 Rxf7 $18) 20... a5) 20. Rc7 {[%emt 0:01:31]} Nd8 {[%emt 0:01:20]} 21. Rxa7 {[%emt 0:01:41] Threatens to win with Bf3.} Rxd4 {[%emt 0:00:42]} (21... Rxb7 {might work better.} 22. Rcxb7 Nxb7 23. Rxb7 h5) 22. Ba6 {[%emt 0:00:57] White is clearly winning.} Rb4 {[%emt 0:02:13]} (22... b5 $142 23. Rxg7+ Kf8) 23. Rxg7+ {[%emt 0:02:20]} Kf8 {[%emt 0:00:09]} 24. Bd3 {[%emt 0:01:35] White took control after the opening.  Weighted Error Value: White=0.21 (precise) /Black=0.64} 1-0

[Event "Doeberl Cup 2022"]
[Site "Canberra"]
[Date "2022.04.15"]
[Round "3.4"]
[White "Rathinalingam, Nethaji"]
[Black "Sardana, Rishi"]
[Result "0-1"]
[ECO "B26"]
[WhiteElo "1801"]
[BlackElo "2461"]
[Annotator "TA"]
[PlyCount "76"]
[EventDate "2022.04.14"]
[EventType "swiss"]
[EventCountry "AUS"]
[SourceTitle "playchess.com"]
[Source "ChessBase"]
[SourceQuality "1"]
[TimeControl "5400+30"]

{[%evp 18,76,-12,-15,-12,-18,-28,-47,-47,-57,-52,-52,-52,-110,-54,-93,-51,-58,-59,-173,-112,-103,-108,-137,-137,-95,-97,-181,-181,-178,-172,-169,-172,-192,-192,-181,-177,-291,-265,-554,-554,-543,-476,-525,-525,-470,-379,-771,-745,-963,-948,-6925,-5214,-2946,-2069,-29982,-29983,-29983,-29984,-29982,-29979]} 1. e4 {[%emt 0:00:10]} c5 {[%emt 0:00:07]} 2. Nc3 {[%emt 0:01:11]} d6 {[%emt 0:00:07]} 3. g3 {[%emt 0:00:21]} Nc6 {[%emt 0:00:08]} 4. Bg2 {[%emt 0:00:06]} g6 {[%emt 0:00:07]} 5. d3 {[%emt 0:00:28]} Bg7 {[%emt 0:00:06]} 6. Nge2 {[%emt 0:00:16]} e5 {[%emt 0:01:40]} 7. O-O {[%emt 0:00:20]} Nge7 {[%emt 0:00:06]} 8. Be3 {[%emt 0:02:48]} O-O {[%emt 0:00:14]} 9. Qd2 {[%emt 0:00:46]} Nd4 {[%emt 0:00:10]} 10. Nd1 {[%emt 0:01:07]} Bh3 {[%emt 0:02:43] B26: Closed Sicilian: 3 g3, lines with early Be3.} 11. Nxd4 {[%emt 0:10:48][%cal Od4c6] [#] Strongly threatening Nc6!} (11. Bxd4 {with more complications.} Bxg2 12. Bxe5 Bxf1 13. Bxg7 Kxg7 14. Qc3+) 11... Bxg2 {[%emt 0:00:23] [#]} 12. Kxg2 $146 {[%emt 0:00:19] Black must now prevent Ne2.} ({Predecessor:} 12. Nc6 bxc6 13. Kxg2 Rb8 14. Rb1 Qd7 15. Nc3 Qe6 16. b3 f5 17. f4 fxe4 18. Nxe4 {0-1 (28) Mahmutbegovic,N (1800)-Dizdarevic,B (1981) Belgrade 2013}) 12... cxd4 {[%emt 0:00:34] Black is slightly better.} 13. Bh6 {[%emt 0:00:13]} Bxh6 {[%emt 0:05:53]} 14. Qxh6 {[%emt 0:00:09]} d5 {[%emt 0:02:38]} 15. f4 {[%emt 0:03:34]} (15. f3 $15) 15... dxe4 (15... f5 $17 16. fxe5 dxe4 17. dxe4 Qc7) 16. dxe4 $15 {[%emt 0:01:59]} f5 {[%emt 1:23:34]} 17. fxe5 {[%emt 0:19:00]} Qc7 {[%emt 0:00:00]} 18. exf5 {[%emt 0:23:29]} (18. Qh4 $15) 18... Nxf5 {[%emt 0:00:00]} ({Black should try} 18... Qxc2+ $19 19. Kg1 Rxf5) 19. Qd2 $17 {[%emt 0:02:44]} Qxe5 {[%emt 0:00:00][%cal Of5h4] &Nero is more active.} 20. Re1 {[%emt 0:00:28]} Qd5+ {[%emt 0:00:00]} 21. Kg1 {[%emt 0:00:54][%cal Od1e3]} Rac8 {[%emt 0:00:00][%cal Od4d3] Threatens to win with ...d3!} 22. Ne3 {[%emt 0:08:05]} Nxe3 $19 {[%emt 0:00:00]} 23. Rxe3 {[%emt 0:00:02] [#]} Rxc2 $1 {[%emt 0:00:00][%mdl 512]} 24. Qxc2 {[%emt 0:00:30]} dxe3 {[%emt 0:00:00]} 25. Qb3 {[%emt 0:06:27]} Qxb3 {[%emt 0:00:00]} 26. axb3 {[%emt 0:00:01][%mdl 4096] Endgame KR-KR} Rd8 {[%emt 0:00:00]} 27. Re1 {[%emt 0:05:42]} (27. Kf1 $142) 27... Rd3 {[%emt 0:00:00]} 28. Re2 $2 {[%emt 0:01:13]} (28. b4) 28... Rxb3 {[%emt 0:00:00]} 29. Kg2 {[%emt 0:00:14]} Kf7 {[%emt 0:01:02]} 30. Kf3 {[%emt 0:00:02]} Ke6 {[%emt 0:00:11]} 31. Ke4 {[%emt 0:00:18]} a5 {[%emt 0:00:32]} 32. h4 $2 {[%emt 0:00:42]} (32. g4) 32... h5 {[%emt 0:00:10]} 33. Kf4 {[%emt 0:00:40]} Kd5 {[%emt 0:00:30] aiming for ...Kd4.} 34. Kg5 {[%emt 0:00:31]} Ke4 {[%emt 0:00:18] ( -> ...Kf3)} 35. g4 {[%emt 0:00:25]} Kd3 {[%emt 0:00:14]} 36. gxh5 {[%emt 0:00:14]} gxh5 {[%emt 0:00:07] Black mates.} 37. Rg2 {[%emt 0:00:47]} Rb5+ {[%emt 0:00:28]} 38. Kf4 {[%emt 0:00:09]} e2 {[%emt 0:00:05] Weighted Error Value: White=1.00/Black=0.06 (flawless)} 0-1

[Event "Doeberl Cup 2022"]
[Site "Canberra"]
[Date "2022.04.15"]
[Round "3.5"]
[White "Johansen, Darryl K"]
[Black "Kargosha, Bahman"]
[Result "1-0"]
[ECO "C59"]
[WhiteElo "2385"]
[BlackElo "2084"]
[Annotator "TA"]
[PlyCount "71"]
[EventDate "2022.04.14"]
[EventType "swiss"]
[EventCountry "AUS"]
[SourceTitle "playchess.com"]
[Source "ChessBase"]
[SourceQuality "1"]
[TimeControl "5400+30"]

{[%evp 18,71,0,-12,16,10,30,26,22,22,60,14,37,17,40,39,69,55,72,49,101,87,89,30,54,74,50,58,43,50,47,41,63,69,90,80,106,106,291,143,363,274,294,284,365,295,288,280,420,400,437,434,636,411,414,343]} 1. e4 {[%emt 0:00:13]} e5 {[%emt 0:00:06]} 2. Nf3 {[%emt 0:00:40]} Nc6 {[%emt 0:00:05]} 3. Bc4 {[%emt 0:00:18]} Nf6 {[%emt 0:00:12]} 4. Ng5 {[%emt 0:00:07]} d5 {[%emt 0:00:08]} 5. exd5 {[%emt 0:00:04]} Na5 {[%emt 0:00:13]} 6. Bb5+ {[%emt 0:00:07]} c6 {[%emt 0:00:19]} 7. dxc6 {[%emt 0:00:06]} bxc6 {[%emt 0:00:07]} 8. Be2 {[%emt 0:00:13]} h6 {[%emt 0:00:15]} 9. Nh3 $1 {[%emt 0:00:31][%mdl 4] is more profitable than 9.Nf3 at the moment.} Bd6 {[%emt 0:05:18]} 10. d3 {[%emt 0:01:12]} Qc7 {[%emt 0:02:18][%mdl 1024] Black has compensation. C59: Two Knights: 4 Ng5 d5 5 exd5 Na5 5 Bb5+ c6 6 dxc6 bxc6 7 Be2.} 11. Nc3 {[%emt 0:01:41]} Bf5 {[%emt 0:03:19]} 12. Bf3 {[%emt 0:04:26]} Rd8 {[%emt 0:03:42] White has an edge.} 13. Qe2 {[%emt 0:02:02]} O-O {[%emt 0:04:59]} 14. O-O {[%emt 0:10:56] [#]} (14. g4 $14 {is superior.} Bc8 15. g5 $1) 14... c5 $146 {[%emt 0:13:35]} ({Predecessor:} 14... Be6 15. Re1 Nd5 16. Bxd5 Bxd5 17. Ne4 Be7 18. Ng3 f6 19. Qg4 Kf7 20. Nf5 Rg8 21. Nf4 exf4 22. Rxe7+ Qxe7 23. Nxe7 Rge8 24. Bd2 {1-0 (24) Spaan,T (2305)-Van Gool,H (2180) Amsterdam 2004}) 15. Ne4 {[%emt 0:14:31]} Nd5 {[%emt 0:13:04]} 16. Ng3 {[%emt 0:20:28][%csl LRd5,LRf5]} Be6 {[%emt 0:00:44]} 17. Bxd5 {[%emt 0:02:18]} Bxd5 {[%emt 0:00:16]} 18. f4 {[%emt 0:01:22]} (18. Nf5 {feels hotter.} Be6 19. Nxh6+ gxh6 20. Bxh6 f6 21. Bxf8 Rxf8 22. Nf4) 18... Nc6 {[%emt 0:11:28]} ({Better is} 18... f5 $14) 19. f5 {[%emt 0:09:34] Threatens to win with f6.} f6 {[%emt 0:03:57]} 20. Be3 {[%emt 0:02:08]} ({White should try} 20. c3 $16) 20... Nd4 {[%emt 0:11:49]} 21. Qf2 {[%emt 0:02:50]} c4 {[%emt 0:00:33]} 22. c3 {[%emt 0:00:16]} Nc6 {[%emt 0:00:34]} 23. dxc4 {[%emt 0:02:00]} Bxc4 {[%emt 0:00:12]} 24. Rfd1 {[%emt 0:00:07]} Be7 {[%emt 0:08:06]} 25. b3 {[%emt 0:00:11][%cal Bb2b3,Bb3b4][%mdl 32]} Bf7 {[%emt 0:00:36]} 26. Qe2 {[%emt 0:01:42]} Qa5 {[%emt 0:01:01]} 27. Ne4 {[%emt 0:00:42]} Ba3 $2 {[%emt 0:02:52] [#]} (27... Rxd1+ $16 28. Rxd1 Rd8) 28. Nhf2 {[%emt 0:00:39]} (28. Bxh6 $1 $18 {[%cal Oe4f6][%mdl 512] is more deadly. Intending Nxf6+! and mate.} Rxd1+ (28... Bd5 29. Qg4) 29. Rxd1) 28... Ne7 $2 {[%emt 0:00:14] A mistake that costs the game.} (28... Be7 $16 29. Rdb1 Rd7) 29. b4 {[%emt 0:00:30]} Qc7 {[%emt 0:00:22]} 30. Bc5 {[%emt 0:00:20]} Nxf5 {[%emt 0:03:30]} 31. Bxf8 {[%emt 0:00:11]} Rxf8 {[%emt 0:02:07]} 32. Qa6 {[%emt 0:12:30] Inhibits a5.} Bb2 {[%emt 0:02:39]} (32... Ne3 {keeps fighting.} 33. Qxa3 f5) 33. Rab1 $18 {[%emt 0:00:06]} Bc4 {[%emt 0:00:24]} 34. Qa4 {[%emt 0:02:39]} Ne3 {[%emt 0:01:23]} (34... Bxc3 $142 35. Nxc3 Nd4) 35. Rxb2 {[%emt 0:00:27] Strongly threatening Rd7.} Nxd1 {[%emt 0:00:13]} 36. Qxd1 {[%emt 0:00:34] Weighted Error Value: White=0.26 (precise) /Black=0.50} 1-0

[Event "Doeberl Cup 2022"]
[Site "Canberra"]
[Date "2022.04.15"]
[Round "3.6"]
[White "Litchfield, Frederick"]
[Black "Wallis, Christopher"]
[Result "1/2-1/2"]
[ECO "C27"]
[WhiteElo "2096"]
[BlackElo "2337"]
[Annotator "TA"]
[PlyCount "79"]
[EventDate "2022.04.14"]
[EventType "swiss"]
[EventCountry "AUS"]
[SourceTitle "playchess.com"]
[Source "ChessBase"]
[SourceQuality "1"]
[TimeControl "5400+30"]

{[%evp 11,79,11,13,8,3,4,4,4,7,7,13,7,10,2,2,0,12,6,8,12,8,7,14,0,2,2,16,11,34,36,33,0,33,20,53,43,54,44,45,48,55,14,29,0,10,8,9,14,25,14,23,37,31,30,34,28,53,52,57,0,7,-43,101,93,102,0,0,0,0,-45]} 1. e4 {[%emt 1:31:00]} e5 {[%emt 0:00:09]} 2. Bc4 {[%emt 0:00:00]} Nf6 {[%emt 0:00:16]} 3. Nc3 {[%emt 0:01:00]} Nxe4 {[%emt 0:02:11]} 4. Qh5 {[%emt 0:00:00]} Nd6 {[%emt 0:00:09]} 5. Qxe5+ {[%emt 0:00:00]} Qe7 {[%emt 0:00:44]} 6. Qxe7+ {[%emt 0:00:00]} Bxe7 {[%emt 1:30:01]} 7. Be2 {[%emt 0:00:00] C27: Vienna Game: 2...Nf6 3 Bc4 Nxe4.} Nf5 {[%emt 0:00:00]} 8. Nf3 {[%emt 0:00:00]} c6 {[%emt 0:00:00]} 9. g4 {[%emt 0:00:00]} Nh4 {[%emt 0:00:00]} 10. Nxh4 {[%emt 0:00:00]} Bxh4 {[%emt 0:02:00]} 11. Ne4 {[#] Nd6+ is the strong threat.} Be7 {[%emt 0:00:00] Against Nd6+} 12. d4 {[%emt 0:00:00]} d5 {[%emt 0:00:00]} 13. Ng3 {[%emt 0:00:00]} Bd6 {[%emt 0:00:00] [#]} 14. Be3 $146 {[%emt 0:00:00]} ({Predecessor:} 14. O-O O-O 15. Bd2 g6 16. f4 b6 17. Rac1 Bb7 18. f5 c5 19. Bf4 Bxf4 20. Rxf4 {½-½ (45) McLaughlin,K (2371)-Cook,D (2261) ICCF email 2016}) 14... a5 {[%emt 0:00:00]} 15. Kd2 {[%emt 0:00:00]} O-O {[%emt 0:00:00]} 16. Rag1 {[%emt 0:00:00]} Re8 {[%emt 0:00:00]} 17. h4 {[%emt 0:00:00]} Nd7 {[%emt 0:00:00][%cal Bb8d7,Bd7f8,Bf8e6][%mdl 32]} 18. Nf5 {[%emt 0:00:00]} Bc7 {[%emt 0:00:00]} 19. Bd3 {[%emt 0:00:00]} b6 {[%emt 0:00:00]} 20. c3 {[%emt 0:00:00]} Ba6 {[%emt 0:00:00]} 21. Bc2 {[%emt 0:00:00]} Nf8 {[%emt 0:00:00]} 22. Rh3 {[%emt 0:00:00]} Ne6 {[%emt 0:00:00]} 23. Rf3 {[%emt 0:00:00]} Rad8 {[%emt 0:00:00][%cal Ba8d8,Bd8d7,Bd7e7][%mdl 32]} 24. g5 {[%emt 0:00:00]} Rd7 {[%emt 0:00:00]} 25. h5 {[%emt 0:00:00] aiming for g6.} Nf8 {[%emt 0:00:00] Prevents g6.} 26. Nh4 {[%emt 0:00:00] White wants to play g6.} g6 {[%emt 0:00:00]} 27. Rh1 {[%emt 0:00:00]} (27. Rf6 $5 {[%cal Rf6c6]}) 27... Rde7 {[%emt 0:00:00]} (27... gxh5 $2 28. Nf5 $18) 28. Rf6 {[%emt 0:00:00]} Bb7 {[%emt 0:00:00]} (28... gxh5 $2 29. Nf5 $18) 29. Bd3 {[%emt 0:00:00]} b5 {[%emt 0:00:00]} (29... gxh5 $2 30. Nf5 $18) 30. Ng2 {[%emt 0:00:00]} Nd7 {[%emt 0:01:06]} 31. Rf3 {[%emt 0:00:00]} Nb6 {[%emt 0:01:40]} 32. b3 {[%emt 0:00:43] Prevents Nc4+.} b4 {[%emt 0:03:14][%cal Oc6c5]} 33. Rfh3 {[%emt 0:03:19] Hoping for hxg6.} bxc3+ {[%emt 0:01:39]} 34. Kxc3 {[%emt 0:00:38] Threatens to win with hxg6.} Nd7 {[%emt 0:00:30][%cal Oc6c5]} 35. Nf4 {[%emt 0:01:47]} ({Better is} 35. Bf4 $14 Nf8 36. Bxc7 Rxc7 37. Ne3) 35... Nf8 $1 $11 {[%emt 0:00:27][%cal Oc6c5]} 36. Kb2 {[%emt 0:03:05]} (36. Rc1 $11) 36... c5 {[%emt 0:01:32]} (36... Bc8 $15 {keeps the upper hand.} 37. Rh4 Rxe3 38. fxe3 Rxe3) 37. hxg6 $16 {[%emt 0:02:29]} ({Inferior is} 37. dxc5 d4 38. Bd2 Bxh1 39. Rxh1 Re5 $15) 37... fxg6 38. Rh4 {[%emt 0:05:29] &Bianco is more active.} (38. dxc5 $16 Rf7 {[#]} 39. Bb5 $1) 38... cxd4 $11 {[%emt 0:03:04]} 39. Bxd4 {[%emt 0:00:00]} Be5 {[%emt 0:00:20]} 40. Ne2 {[%emt 0:00:00] Weighted Error Value: White=0.13 (very precise) /Black=0.13 (very precise)} 1/2-1/2

[Event "Doeberl Cup 2022"]
[Site "Canberra"]
[Date "2022.04.15"]
[Round "3.7"]
[White "Press, Harry"]
[Black "Banerjee, Niki"]
[Result "1/2-1/2"]
[ECO "B01"]
[WhiteElo "2114"]
[BlackElo "2043"]
[Annotator "TA"]
[PlyCount "77"]
[EventDate "2022.04.14"]
[EventType "swiss"]
[EventCountry "AUS"]
[SourceTitle "playchess.com"]
[Source "ChessBase"]
[SourceQuality "1"]
[TimeControl "5400+30"]

{[%evp 17,77,0,12,9,43,-29,20,0,0,-15,-12,-18,-25,-28,-18,-16,-16,-20,-25,-70,-62,-123,-30,-31,-17,-24,0,0,0,0,0,-14,-12,-18,-16,-83,-108,-200,-198,-202,-192,-197,-72,-72,-72,-72,-72,-93,-90,-103,-72,-103,-87,-135,-106,-139,-72,-81,-47,-52,-48,-53]} 1. e4 {[%emt 1:24:07]} d5 {[%emt 1:26:42]} 2. exd5 {[%emt 0:00:30]} Qxd5 {[%emt 0:00:30]} 3. Nc3 {[%emt 0:00:30]} Qa5 {[%emt 0:00:30]} 4. d4 {[%emt 0:00:30]} Nf6 {[%emt 0:00:30]} 5. Nf3 {[%emt 0:00:30]} c6 {[%emt 0:00:30]} 6. Ne5 {[%emt 0:00:30]} Bf5 {[%emt 0:00:30]} 7. Bc4 {[%emt 0:00:30]} e6 {[%emt 0:00:30]} 8. Bd2 {[%emt 0:00:30]} Nbd7 {[%emt 0:00:30]} 9. Qe2 {[%emt 0:00:30]} Qc7 {[%emt 0:00:30]} 10. Nxd7 {[%emt 0:00:30] B01: Scandinavian Defence.} Nxd7 {[%emt 0:00:30]} 11. g4 {[%emt 0:00:30]} (11. d5 $14) 11... Bg6 {[%emt 0:00:30]} (11... Bxc2 $142 12. Bg5 Nb6 $1) 12. O-O-O {[%emt 0:00:30] The position is equal.} O-O-O {[%emt 0:00:30]} 13. Bg5 {[%emt 0:00:30]} Nf6 {[%emt 0:00:30] [#]} 14. Qf3 $146 {[%emt 0:00:30]} ({Predecessor:} 14. h3 Be7 15. Qf3 h6 16. Bf4 Bd6 17. Bxd6 Rxd6 18. Bd3 Rxd4 19. Bxg6 Rxd1+ 20. Rxd1 fxg6 21. Qe3 Kb8 22. Qxe6 Re8 23. Qc4 g5 24. a3 a6 25. Kb1 Re7 26. Rd3 Kc8 {½-½ (26) Wessel,R-Schlaeger,J freechess.de 2014}) 14... h5 {[%emt 0:00:30]} 15. h3 {[%emt 0:00:30]} ({Much weaker is} 15. Bxf6 gxf6 16. h3 (16. Qxf6 $2 Be7 $19) 16... hxg4 17. hxg4 Rxh1 18. Rxh1 Rxd4 $17) 15... hxg4 {[%emt 0:00:30]} 16. hxg4 {[%emt 0:00:30]} Rxh1 {[%emt 0:00:30]} 17. Qxh1 {[%emt 0:00:30]} Qa5 {[%emt 0:00:30]} 18. Bxf6 {[%emt 0:00:30]} gxf6 {[%emt 0:00:30]} 19. Qf3 {[%emt 0:00:30]} (19. f3 $15) 19... Bh6+ {[%emt 0:00:30]} (19... Qg5+ $1 $17 20. Kb1 f5) 20. Kb1 $11 {[%emt 0:00:30][%cal Oc4e6]} f5 {[%emt 0:00:30]} 21. Qe2 {[%emt 0:00:30][%cal Oc4e6]} Rd6 {[%emt 0:00:30]} 22. d5 {[%emt 0:00:30]} (22. Rh1 Bg7 23. gxf5 Bxf5 $17) 22... cxd5 {[%emt 0:00:30]} 23. Qe5 {[%emt 0:00:30]} Bf8 {[%emt 0:00:30]} 24. gxf5 {[%emt 0:00:30]} Bxf5 {[%emt 0:00:30]} 25. Bxd5 $1 Qc7 {[%emt 0:04:48]} 26. Rd4 {[%emt 0:01:00]} f6 $1 $17 {[%emt 0:00:00]} 27. Qe2 {[%emt 0:03:34]} ({Avoid the trap} 27. Qxf6 $2 Bg7 28. Bxe6+ Bxe6 29. Qxg7 Qxg7 $19) (27. Qf4 $17 Rxd5 28. Qxc7+ Kxc7 29. Nxd5+ exd5 30. Rf4) 27... exd5 $19 {[%emt 0:00:00]} 28. Nb5 {[%emt 0:01:59]} Qc5 {[%emt 0:01:30] White must now prevent ...Re6.} 29. b4 {[%emt 0:02:50] [#]} Qxc2+ {[%emt 0:00:30]} 30. Qxc2+ $17 {[%emt 0:00:30]} Bxc2+ {[%emt 0:00:30]} 31. Kxc2 $19 {[%emt 0:00:30][%mdl 4096] Endgame [#] KRB-KRN} Rb6 {[%emt 0:00:30]} 32. Rxd5 {[%emt 0:00:00] [#]} a6 {[%emt 0:00:00]} 33. Nd4 {[%emt 0:00:00]} (33. Na7+ $2 Kc7 34. b5 Re6 $19) 33... Bxb4 {[%emt 0:00:00]} 34. Rh5 {[%emt 0:00:38]} Rd6 {[%emt 0:00:00]} 35. Nb3 {[%emt 0:01:22]} (35. Kd3 $142) 35... Kd7 {[%emt 0:02:00]} 36. f3 {[%emt 0:00:30]} Re6 {[%emt 0:00:30]} (36... b6 $142 37. Rh4 Rc6+ 38. Kd1 a5 39. Rd4+ Ke7) 37. Kd3 {[%emt 0:00:30]} b6 {[%emt 0:00:30]} 38. Nd4 {[%emt 0:00:30]} Rd6 {[%emt 0:00:30] ...Bc5 is the strong threat.} 39. Ke4 {[%emt 0:00:30] Weighted Error Value: White=0.27 (precise) /Black=0.20 (precise)} 1/2-1/2